[Event "*** Titled Tuesday Blitz"]
[Site "Chess.com"]
[Date "2020.04.21"]
[Round "6"]
[White "KNVB"]
[Black "Donseng"]
[Result "1-0"]
[WhiteElo "2765"]
[BlackElo "2526"]
[TimeControl "180+1"]
[EndTime "11:10:13 PDT"]
[Termination "KNVB won on time"]

1. d4 {[%clk 0:03:00.9]} 1... d5 {[%clk 0:02:59.5]} 2. Bf4 {[%clk 0:03:01]} 2...
Nf6 {[%clk 0:02:59.3]} 3. e3 {[%clk 0:03:01.5]} 3... e6 {[%clk 0:02:59.7]} 4.
Nd2 {[%clk 0:03:01.7]} 4... Bd6 {[%clk 0:03:00.3]} 5. Ngf3 {[%clk 0:03:02.3]}
5... b6 {[%clk 0:03:00.3]} 6. c3 {[%clk 0:03:01.9]} 6... Bb7 {[%clk 0:03:00.5]}
7. Bd3 {[%clk 0:03:01.5]} 7... Nbd7 {[%clk 0:03:00.8]} 8. O-O {[%clk 0:03:01.7]}
8... Ne4 {[%clk 0:02:57.9]} 9. a4 {[%clk 0:03:01]} 9... a6 {[%clk 0:02:57.2]}
10. Qc2 {[%clk 0:02:57.2]} 10... Nxd2 {[%clk 0:02:54.3]} 11. Qxd2 {[%clk
0:02:53.9]} 11... O-O {[%clk 0:02:51.6]} 12. a5 {[%clk 0:02:48.6]} 12... b5
{[%clk 0:02:51.1]} 13. Qc2 {[%clk 0:02:47.7]} 13... h6 {[%clk 0:02:50.7]} 14.
Rfe1 {[%clk 0:02:26.6]} 14... Re8 {[%clk 0:02:36]} 15. Ne5 {[%clk 0:01:31.3]}
15... Nxe5 {[%clk 0:02:25.1]} 16. dxe5 {[%clk 0:01:22.9]} 16... Be7 {[%clk
0:02:22.8]} 17. Qe2 {[%clk 0:01:15.5]} 17... f5 {[%clk 0:01:42]} 18. exf6 {[%clk
0:01:04.9]} 18... Bxf6 {[%clk 0:01:41.3]} 19. Bg6 {[%clk 0:00:36.9]} 19... Rf8
{[%clk 0:01:40.1]} 20. Qh5 {[%clk 0:00:33.6]} 20... Qe7 {[%clk 0:01:20.2]} 21.
e4 {[%clk 0:00:29.9]} 21... Bxc3 {[%clk 0:01:16.7]} 22. bxc3 {[%clk 0:00:30.4]}
22... Rxf4 {[%clk 0:01:14.4]} 23. exd5 {[%clk 0:00:31]} 23... Raf8 {[%clk
0:00:56.6]} 24. dxe6 {[%clk 0:00:18.1]} 24... Rxf2 {[%clk 0:00:52]} 25. Bf7+
{[%clk 0:00:18.1]} 25... R8xf7 {[%clk 0:00:30.9]} 26. exf7+ {[%clk 0:00:18.3]}
26... Qxf7 {[%clk 0:00:28.7]} 27. Re8+ {[%clk 0:00:13]} 27... Kh7 {[%clk
0:00:28.1]} 28. Qxf7 {[%clk 0:00:12.6]} 28... Rxf7 {[%clk 0:00:29]} 29. Rae1
{[%clk 0:00:09.8]} 29... Bd5 {[%clk 0:00:13.5]} 30. R8e7 {[%clk 0:00:08.6]}
30... Rf4 {[%clk 0:00:12.6]} 31. Rxc7 {[%clk 0:00:05.8]} 31... Rg4 {[%clk
0:00:12.8]} 32. g3 {[%clk 0:00:05.5]} 32... h5 {[%clk 0:00:12.7]} 33. Re5 {[%clk
0:00:04.8]} 33... Bc4 {[%clk 0:00:05.8]} 34. Rxh5+ {[%clk 0:00:05]} 34... Kg6
{[%clk 0:00:06.7]} 35. Re5 {[%clk 0:00:04.7]} 35... Kf6 {[%clk 0:00:06.7]} 36.
Re3 {[%clk 0:00:04.4]} 36... Rg5 {[%clk 0:00:05.2]} 37. Rc6+ {[%clk 0:00:04.6]}
37... Kf7 {[%clk 0:00:05.2]} 38. Rxa6 {[%clk 0:00:04.4]} 38... Rc5 {[%clk
0:00:04.4]} 39. Ra7+ {[%clk 0:00:04.3]} 39... Kg6 {[%clk 0:00:04.5]} 40. Kf2
{[%clk 0:00:04.5]} 40... Bd5 {[%clk 0:00:04.3]} 41. Rd7 {[%clk 0:00:03.5]} 41...
Bc6 {[%clk 0:00:04.1]} 42. Rc7 {[%clk 0:00:03.6]} 42... Rf5+ {[%clk 0:00:03.9]}
43. Ke1 {[%clk 0:00:03.5]} 43... Bd5 {[%clk 0:00:04.8]} 44. a6 {[%clk
0:00:03.7]} 44... Rf6 {[%clk 0:00:03.3]} 45. a7 {[%clk 0:00:03.8]} 45... Ra6
{[%clk 0:00:03.9]} 46. Re5 {[%clk 0:00:04.4]} 46... Bh1 {[%clk 0:00:03.4]} 47.
Kd2 {[%clk 0:00:04.6]} 47... Ra3 {[%clk 0:00:02.1]} 48. Rxb5 {[%clk 0:00:04.5]}
48... Ra2+ {[%clk 0:00:02]} 49. Kc1 {[%clk 0:00:04.7]} 49... Be4 {[%clk
0:00:01.1]} 50. h4 {[%clk 0:00:04.5]} 50... Ra1+ {[%clk 0:00:01.3]} 51. Kd2
{[%clk 0:00:03.6]} 51... Ra2+ {[%clk 0:00:01.4]} 52. Ke3 {[%clk 0:00:04.1]}
52... Bg2 {[%clk 0:00:02]} 53. c4 {[%clk 0:00:04.1]} 53... Kh6 {[%clk
0:00:01.1]} 54. g4 {[%clk 0:00:04.3]} 54... g6 {[%clk 0:00:01.4]} 55. Rb6 {[%clk
0:00:03.7]} 55... Ra3+ {[%clk 0:00:02]} 56. Kd4 {[%clk 0:00:03]} 56... Ra1
{[%clk 0:00:01.6]} 57. h5 {[%clk 0:00:03.2]} 57... Kg5 {[%clk 0:00:01.9]} 58.
Rxg6+ {[%clk 0:00:03]} 58... Kf4 {[%clk 0:00:02.8]} 59. Rgg7 {[%clk 0:00:03.5]}
59... Rd1+ {[%clk 0:00:02.5]} 60. Kc5 {[%clk 0:00:04.4]} 60... Ra1 {[%clk
0:00:03.1]} 61. h6 {[%clk 0:00:05]} 61... Ke5 {[%clk 0:00:03.7]} 62. h7 {[%clk
0:00:04.8]} 62... Ra5+ {[%clk 0:00:04.1]} 63. Kb4 {[%clk 0:00:05.2]} 63... Ra1
{[%clk 0:00:04.1]} 64. Rge7+ {[%clk 0:00:05.9]} 64... Kd6 {[%clk 0:00:03.5]} 65.
Red7+ {[%clk 0:00:05.7]} 65... Ke6 {[%clk 0:00:02.8]} 66. h8=Q {[%clk
0:00:06.4]} 66... Rb1+ {[%clk 0:00:03.7]} 67. Kc3 {[%clk 0:00:06.9]} 1-0

[Event "*** Titled Tuesday Blitz"]
[Site "Chess.com"]
[Date "2020.04.21"]
[Round "6"]
[White "Arman_Hakemi"]
[Black "patzerplay"]
[Result "1-0"]
[WhiteElo "2562"]
[BlackElo "2338"]
[TimeControl "180+1"]
[EndTime "11:10:20 PDT"]
[Termination "Arman_Hakemi won by checkmate"]

1. Nf3 {[%clk 0:03:00.9]} 1... Nf6 {[%clk 0:02:38.3]} 2. b3 {[%clk 0:03:00.7]}
2... g6 {[%clk 0:02:37.5]} 3. Bb2 {[%clk 0:03:01.1]} 3... Bg7 {[%clk 0:02:37.5]}
4. g3 {[%clk 0:03:01.2]} 4... O-O {[%clk 0:02:35.2]} 5. Bg2 {[%clk 0:03:01.4]}
5... d5 {[%clk 0:02:29.9]} 6. c4 {[%clk 0:02:59.6]} 6... c6 {[%clk 0:02:28.9]}
7. O-O {[%clk 0:02:59.5]} 7... Ne4 {[%clk 0:02:24]} 8. Bxg7 {[%clk 0:02:58.6]}
8... Kxg7 {[%clk 0:02:24.9]} 9. d3 {[%clk 0:02:58.9]} 9... Nf6 {[%clk
0:02:18.1]} 10. Qc2 {[%clk 0:02:58.9]} 10... b5 {[%clk 0:02:13.1]} 11. Nbd2
{[%clk 0:02:58.8]} 11... Bf5 {[%clk 0:01:47.9]} 12. Nd4 {[%clk 0:02:50.1]} 12...
Bd7 {[%clk 0:01:45.5]} 13. N4f3 {[%clk 0:02:46.3]} 13... Bf5 {[%clk 0:01:41.8]}
14. Ne5 {[%clk 0:02:43.1]} 14... Qd6 {[%clk 0:00:55.6]} 15. Ndf3 {[%clk
0:02:41]} 15... Nbd7 {[%clk 0:00:51]} 16. Nxd7 {[%clk 0:02:31.5]} 16... Qxd7
{[%clk 0:00:50.3]} 17. Rac1 {[%clk 0:02:31.9]} 17... Rac8 {[%clk 0:00:30.1]} 18.
c5 {[%clk 0:02:28.4]} 18... h6 {[%clk 0:00:27]} 19. h4 {[%clk 0:02:27]} 19...
Bh3 {[%clk 0:00:26.3]} 20. Ne5 {[%clk 0:02:23.8]} 20... Qe6 {[%clk 0:00:26.4]}
21. d4 {[%clk 0:02:22.1]} 21... Bxg2 {[%clk 0:00:25.4]} 22. Kxg2 {[%clk
0:02:23]} 22... a5 {[%clk 0:00:24.6]} 23. f3 {[%clk 0:02:19.8]} 23... Nd7 {[%clk
0:00:22.6]} 24. Nd3 {[%clk 0:02:19.6]} 24... Qf5 {[%clk 0:00:17.4]} 25. Nf2
{[%clk 0:02:09.9]} 25... Qxc2 {[%clk 0:00:15.2]} 26. Rxc2 {[%clk 0:02:10.8]}
26... e5 {[%clk 0:00:10.4]} 27. e3 {[%clk 0:02:11]} 27... Rfe8 {[%clk
0:00:10.1]} 28. Nd3 {[%clk 0:02:08.3]} 28... exd4 {[%clk 0:00:10.2]} 29. exd4
{[%clk 0:02:09.2]} 29... Re3 {[%clk 0:00:10.8]} 30. Nf4 {[%clk 0:02:07.6]} 30...
Rce8 {[%clk 0:00:10.7]} 31. Rff2 {[%clk 0:02:07.6]} 31... g5 {[%clk 0:00:11.1]}
32. hxg5 {[%clk 0:02:06.7]} 32... hxg5 {[%clk 0:00:12]} 33. Nh3 {[%clk
0:02:04.9]} 33... Kg6 {[%clk 0:00:12.1]} 34. Rcd2 {[%clk 0:01:52.4]} 34... f5
{[%clk 0:00:12.3]} 35. Ng1 {[%clk 0:01:48]} 35... Nf6 {[%clk 0:00:12.3]} 36. Ne2
{[%clk 0:01:45.8]} 36... g4 {[%clk 0:00:12.8]} 37. Nf4+ {[%clk 0:01:45.7]} 37...
Kg5 {[%clk 0:00:12.3]} 38. Nd3 {[%clk 0:01:33.6]} 38... gxf3+ {[%clk 0:00:12.5]}
39. Rxf3 {[%clk 0:01:34.1]} 39... Ng4 {[%clk 0:00:12.9]} 40. Nf4 {[%clk
0:01:22.8]} 40... Rxf3 {[%clk 0:00:11.9]} 41. Kxf3 {[%clk 0:01:23.7]} 41... Re3+
{[%clk 0:00:12.4]} 42. Kg2 {[%clk 0:01:23.7]} 42... Kf6 {[%clk 0:00:12.5]} 43.
Nd3 {[%clk 0:01:11.5]} 43... Re4 {[%clk 0:00:12.4]} 44. Nf4 {[%clk 0:01:11.6]}
44... Nh6 {[%clk 0:00:11.2]} 45. Kf3 {[%clk 0:01:05.9]} 45... b4 {[%clk
0:00:10.8]} 46. Rh2 {[%clk 0:01:02.7]} 46... Nf7 {[%clk 0:00:10.9]} 47. Rd2
{[%clk 0:00:54.4]} 47... Ng5+ {[%clk 0:00:11.2]} 48. Kf2 {[%clk 0:00:52.3]}
48... Re7 {[%clk 0:00:11.8]} 49. Rd3 {[%clk 0:00:46.7]} 49... Ne4+ {[%clk
0:00:12.2]} 50. Kg2 {[%clk 0:00:47.1]} 50... Rh7 {[%clk 0:00:12.8]} 51. Re3
{[%clk 0:00:41.9]} 51... Kg5 {[%clk 0:00:13.1]} 52. Nd3 {[%clk 0:00:41.1]} 52...
Rg7 {[%clk 0:00:10.8]} 53. Nf4 {[%clk 0:00:36.9]} 53... Kf6 {[%clk 0:00:10.7]}
54. Nh5+ {[%clk 0:00:36.5]} 54... Kg6 {[%clk 0:00:10.8]} 55. Nxg7 {[%clk
0:00:37.4]} 55... Kxg7 {[%clk 0:00:11.7]} 56. Kf3 {[%clk 0:00:36.9]} 56... Kg6
{[%clk 0:00:11.2]} 57. Kf4 {[%clk 0:00:31.3]} 57... Kf6 {[%clk 0:00:11.3]} 58.
g4 {[%clk 0:00:30.3]} 58... fxg4 {[%clk 0:00:11.3]} 59. Kxg4 {[%clk 0:00:31.2]}
59... Nc3 {[%clk 0:00:11.5]} 60. Rh3 {[%clk 0:00:28.7]} 60... Nxa2 {[%clk
0:00:11.5]} 61. Rh6+ {[%clk 0:00:28.9]} 61... Ke7 {[%clk 0:00:11.8]} 62. Rxc6
{[%clk 0:00:29.3]} 62... Nc1 {[%clk 0:00:12.7]} 63. Kf5 {[%clk 0:00:18.5]} 63...
Nxb3 {[%clk 0:00:13.2]} 64. Ke5 {[%clk 0:00:18.9]} 64... a4 {[%clk 0:00:11.6]}
65. Ra6 {[%clk 0:00:15.3]} 65... a3 {[%clk 0:00:12]} 66. Kxd5 {[%clk 0:00:15]}
66... Nc1 {[%clk 0:00:12.1]} 67. Ra7+ {[%clk 0:00:08.5]} 67... Kd8 {[%clk
0:00:11.8]} 68. Kd6 {[%clk 0:00:08.3]} 68... Kc8 {[%clk 0:00:12]} 69. c6 {[%clk
0:00:08.7]} 69... Kb8 {[%clk 0:00:12.4]} 70. Rb7+ {[%clk 0:00:08.8]} 70... Ka8
{[%clk 0:00:12.6]} 71. Rxb4 {[%clk 0:00:08.8]} 71... a2 {[%clk 0:00:12.9]} 72.
c7 {[%clk 0:00:07.9]} 72... Ka7 {[%clk 0:00:10.4]} 73. c8=Q {[%clk 0:00:07.9]}
73... a1=Q {[%clk 0:00:10.6]} 74. Qb7# {[%clk 0:00:07.9]} 1-0

[Event "*** Titled Tuesday Blitz"]
[Site "Chess.com"]
[Date "2020.04.21"]
[Round "6"]
[White "Grischuk"]
[Black "Sviridov_Valery"]
[Result "1-0"]
[WhiteElo "3097"]
[BlackElo "2860"]
[TimeControl "180+1"]
[EndTime "11:10:21 PDT"]
[Termination "Grischuk won by resignation"]

1. Nf3 {[%clk 0:03:00.9]} 1... Nf6 {[%clk 0:02:59.2]} 2. g3 {[%clk 0:03:01.2]}
2... g6 {[%clk 0:02:58.3]} 3. c4 {[%clk 0:03:00.6]} 3... Bg7 {[%clk 0:02:58.6]}
4. Nc3 {[%clk 0:03:01.2]} 4... c5 {[%clk 0:02:57.5]} 5. d4 {[%clk 0:02:57.8]}
5... cxd4 {[%clk 0:02:56]} 6. Nxd4 {[%clk 0:02:58.7]} 6... O-O {[%clk
0:02:55.9]} 7. Bg2 {[%clk 0:02:58.9]} 7... Nc6 {[%clk 0:02:55.8]} 8. O-O {[%clk
0:02:58.7]} 8... Ng4 {[%clk 0:02:55.8]} 9. e3 {[%clk 0:02:56.3]} 9... d6 {[%clk
0:02:55.6]} 10. b3 {[%clk 0:02:45.9]} 10... Nxd4 {[%clk 0:02:53.4]} 11. exd4
{[%clk 0:02:45.8]} 11... Nh6 {[%clk 0:02:54.3]} 12. Bb2 {[%clk 0:02:27.2]} 12...
Nf5 {[%clk 0:02:53.3]} 13. d5 {[%clk 0:02:26.9]} 13... Bd7 {[%clk 0:02:48.3]}
14. Re1 {[%clk 0:02:24.6]} 14... a6 {[%clk 0:02:46.1]} 15. a4 {[%clk 0:02:10.9]}
15... Re8 {[%clk 0:02:19.2]} 16. Rb1 {[%clk 0:02:01]} 16... Rb8 {[%clk
0:02:16.7]} 17. Qd3 {[%clk 0:01:59.2]} 17... b5 {[%clk 0:02:11.9]} 18. cxb5
{[%clk 0:01:49.4]} 18... axb5 {[%clk 0:02:12.8]} 19. Nxb5 {[%clk 0:01:49.1]}
19... Bxb2 {[%clk 0:02:10.8]} 20. Rxb2 {[%clk 0:01:50]} 20... Bxb5 {[%clk
0:02:10.6]} 21. axb5 {[%clk 0:01:50.9]} 21... Qa5 {[%clk 0:02:10.9]} 22. Reb1
{[%clk 0:01:35.6]} 22... Qxb5 {[%clk 0:01:58.3]} 23. Qxb5 {[%clk 0:01:35.8]}
23... Rxb5 {[%clk 0:01:59.2]} 24. b4 {[%clk 0:01:36.7]} 24... Reb8 {[%clk
0:01:58.2]} 25. Be4 {[%clk 0:01:23.4]} 25... Kg7 {[%clk 0:01:30]} 26. Kf1 {[%clk
0:01:22.6]} 26... Kf6 {[%clk 0:01:29.4]} 27. Ke2 {[%clk 0:01:23]} 27... Rc8
{[%clk 0:01:25.8]} 28. Kd3 {[%clk 0:01:18.2]} 28... e6 {[%clk 0:01:25.6]} 29.
dxe6 {[%clk 0:01:17.7]} 29... fxe6 {[%clk 0:01:26.5]} 30. Kd2 {[%clk 0:00:50.8]}
30... d5 {[%clk 0:01:19.1]} 31. Bd3 {[%clk 0:00:51]} 31... Rb6 {[%clk
0:01:19.4]} 32. b5 {[%clk 0:00:40.8]} 32... e5 {[%clk 0:01:19]} 33. Rc2 {[%clk
0:00:31.1]} 33... Rxc2+ {[%clk 0:01:15]} 34. Bxc2 {[%clk 0:00:32]} 34... Nd6
{[%clk 0:01:15.5]} 35. Ba4 {[%clk 0:00:27.9]} 35... e4 {[%clk 0:01:08.3]} 36.
Kc3 {[%clk 0:00:27.5]} 36... Ke5 {[%clk 0:01:06.4]} 37. Kb4 {[%clk 0:00:28]}
37... Rb8 {[%clk 0:01:03.4]} 38. Rc1 {[%clk 0:00:27.2]} 38... Nc4 {[%clk
0:01:02.1]} 39. Bb3 {[%clk 0:00:25.5]} 39... Nd6 {[%clk 0:01:02.2]} 40. Rc5
{[%clk 0:00:25.1]} 40... Rb6 {[%clk 0:00:34.7]} 41. Rxd5+ {[%clk 0:00:24.9]}
41... Ke6 {[%clk 0:00:33.3]} 42. Rc5+ {[%clk 0:00:20.7]} 42... Kf6 {[%clk
0:00:33.5]} 43. Bd5 {[%clk 0:00:19.8]} 43... Rb8 {[%clk 0:00:30.4]} 44. Ka5
{[%clk 0:00:18.9]} 44... Ke5 {[%clk 0:00:30.1]} 45. Bc6+ {[%clk 0:00:15.4]}
45... Ke6 {[%clk 0:00:24.7]} 46. b6 {[%clk 0:00:14.7]} 46... Rf8 {[%clk
0:00:21.9]} 47. Rc2 {[%clk 0:00:13.7]} 47... Rf5+ {[%clk 0:00:17.5]} 48. Ka6
{[%clk 0:00:11.5]} 48... Re5 {[%clk 0:00:18.4]} 49. b7 {[%clk 0:00:10.1]} 49...
Nxb7 {[%clk 0:00:18.4]} 50. Kxb7 {[%clk 0:00:10.1]} 50... e3 {[%clk 0:00:19.3]}
51. fxe3 {[%clk 0:00:09.7]} 51... Rxe3 {[%clk 0:00:20.2]} 52. Kc7 {[%clk
0:00:09.3]} 52... h5 {[%clk 0:00:18.8]} 53. Be8 {[%clk 0:00:06.4]} 53... Kf6
{[%clk 0:00:17.7]} 54. Rc6+ {[%clk 0:00:06.1]} 54... Ke7 {[%clk 0:00:12.6]} 55.
Bxg6 {[%clk 0:00:05.9]} 55... h4 {[%clk 0:00:13.5]} 56. gxh4 {[%clk 0:00:05.4]}
56... Rh3 {[%clk 0:00:14.4]} 57. h5 {[%clk 0:00:05.8]} 57... Rxh2 {[%clk
0:00:14.7]} 58. Rc3 {[%clk 0:00:05.8]} 58... Kf6 {[%clk 0:00:11.7]} 59. Rf3+
{[%clk 0:00:04.6]} 59... Kg7 {[%clk 0:00:11.8]} 60. Kd6 {[%clk 0:00:05]} 60...
Re2 {[%clk 0:00:10.8]} 61. Kd5 {[%clk 0:00:05.1]} 61... Kh6 {[%clk 0:00:11]} 62.
Rf7 {[%clk 0:00:05.2]} 62... Re1 {[%clk 0:00:10.3]} 63. Rh7+ {[%clk 0:00:05.3]}
63... Kg5 {[%clk 0:00:10.8]} 64. Rh8 {[%clk 0:00:05.7]} 64... Kf6 {[%clk
0:00:11]} 65. Kd4 {[%clk 0:00:05.6]} 65... Kg5 {[%clk 0:00:11]} 66. Be4 {[%clk
0:00:05.1]} 66... Re2 {[%clk 0:00:09.8]} 67. h6 {[%clk 0:00:05.1]} 67... Kf6
{[%clk 0:00:09.6]} 68. h7 {[%clk 0:00:05.3]} 68... Rh2 {[%clk 0:00:09.1]} 69.
Rg8 {[%clk 0:00:05.7]} 1-0

[Event "*** Titled Tuesday Blitz"]
[Site "Chess.com"]
[Date "2020.04.21"]
[Round "6"]
[White "imdarealist"]
[Black "Mikhail_Golubev"]
[Result "0-1"]
[WhiteElo "2321"]
[BlackElo "2531"]
[TimeControl "180+1"]
[EndTime "11:10:21 PDT"]
[Termination "Mikhail_Golubev won by resignation"]

1. d4 {[%clk 0:03:00.6]} 1... Nf6 {[%clk 0:02:58.8]} 2. Bf4 {[%clk 0:03:00.9]}
2... d6 {[%clk 0:02:58.4]} 3. e3 {[%clk 0:03:00.6]} 3... Nbd7 {[%clk 0:02:57.3]}
4. Nf3 {[%clk 0:03:00.4]} 4... g6 {[%clk 0:02:56.3]} 5. h3 {[%clk 0:02:59.7]}
5... Bg7 {[%clk 0:02:56.3]} 6. c3 {[%clk 0:02:59.4]} 6... b6 {[%clk 0:02:55.1]}
7. Bh2 {[%clk 0:02:59.3]} 7... Bb7 {[%clk 0:02:55.1]} 8. Be2 {[%clk 0:02:59.7]}
8... O-O {[%clk 0:02:55.1]} 9. O-O {[%clk 0:03:00.3]} 9... Qe8 {[%clk
0:02:55.1]} 10. a4 {[%clk 0:02:59.7]} 10... a6 {[%clk 0:02:52]} 11. Qb3 {[%clk
0:02:56.6]} 11... e5 {[%clk 0:02:50.1]} 12. Rd1 {[%clk 0:02:46.3]} 12... Qe7
{[%clk 0:02:40.3]} 13. a5 {[%clk 0:02:37.1]} 13... b5 {[%clk 0:02:37.8]} 14. c4
{[%clk 0:02:29.3]} 14... exd4 {[%clk 0:02:36.6]} 15. Nxd4 {[%clk 0:02:22.7]}
15... Nc5 {[%clk 0:02:36.1]} 16. Qa3 {[%clk 0:02:19.9]} 16... bxc4 {[%clk
0:02:32.6]} 17. Bxc4 {[%clk 0:02:17.8]} 17... Nce4 {[%clk 0:02:07.8]} 18. Nc3
{[%clk 0:02:07.5]} 18... Nxc3 {[%clk 0:02:07.4]} 19. bxc3 {[%clk 0:02:05.7]}
19... Ne4 {[%clk 0:02:02.4]} 20. Rab1 {[%clk 0:01:48.6]} 20... Nc5 {[%clk
0:02:00.6]} 21. Bf1 {[%clk 0:01:39.6]} 21... Be4 {[%clk 0:01:55.1]} 22. Rb2
{[%clk 0:01:29.6]} 22... Rae8 {[%clk 0:01:54.7]} 23. Bg3 {[%clk 0:01:24.1]}
23... h5 {[%clk 0:01:52.5]} 24. f3 {[%clk 0:01:03.9]} 24... Ba8 {[%clk
0:01:51.8]} 25. Bf2 {[%clk 0:01:04.5]} 25... f5 {[%clk 0:01:48.5]} 26. Bc4+
{[%clk 0:00:59.3]} 26... Kh7 {[%clk 0:01:46.7]} 27. Re2 {[%clk 0:00:47.4]} 27...
Bh6 {[%clk 0:01:12]} 28. Rde1 {[%clk 0:00:40.4]} 28... Qg7 {[%clk 0:01:07.2]}
29. Qc1 {[%clk 0:00:33.1]} 29... d5 {[%clk 0:01:03.6]} 30. Ba2 {[%clk
0:00:29.7]} 30... Nd3 {[%clk 0:01:03.6]} 31. Qc2 {[%clk 0:00:23]} 31... Nxe1
{[%clk 0:01:03.1]} 32. Rxe1 {[%clk 0:00:23.9]} 32... f4 {[%clk 0:00:59.7]} 33.
exf4 {[%clk 0:00:20.6]} 33... Rxe1+ {[%clk 0:00:57.9]} 34. Bxe1 {[%clk 0:00:21]}
34... Bxf4 {[%clk 0:00:58.4]} 35. Ne6 {[%clk 0:00:12.6]} 35... Qe7 {[%clk
0:00:36.1]} 36. Nxf8+ {[%clk 0:00:10.5]} 36... Qxf8 {[%clk 0:00:36.2]} 37. Qe2
{[%clk 0:00:08.7]} 37... Qf6 {[%clk 0:00:28.2]} 38. Bf2 {[%clk 0:00:05.1]} 38...
Qxc3 {[%clk 0:00:25]} 39. Qe7+ {[%clk 0:00:04.9]} 39... Qg7 {[%clk 0:00:24.8]}
40. Qe6 {[%clk 0:00:02.8]} 40... Qa1+ {[%clk 0:00:23.3]} 41. Qe1 {[%clk
0:00:03.2]} 41... Qxe1+ {[%clk 0:00:22.5]} 42. Bxe1 {[%clk 0:00:03.4]} 42... c5
{[%clk 0:00:22.1]} 43. Bf2 {[%clk 0:00:03.2]} 43... c4 {[%clk 0:00:19.6]} 44.
Bd4 {[%clk 0:00:03.3]} 44... Bh6 {[%clk 0:00:19.3]} 45. Bb1 {[%clk 0:00:03.5]}
45... Bg7 {[%clk 0:00:19.4]} 46. Be3 {[%clk 0:00:03.1]} 46... d4 {[%clk
0:00:18.4]} 47. Bd2 {[%clk 0:00:03.3]} 47... Bc6 {[%clk 0:00:15.3]} 48. Kf1
{[%clk 0:00:03.1]} 48... Bb5 {[%clk 0:00:15.3]} 49. Ke1 {[%clk 0:00:02.9]} 49...
c3 {[%clk 0:00:14.6]} 50. Bf4 {[%clk 0:00:03.3]} 50... d3 {[%clk 0:00:14.5]} 51.
Kd1 {[%clk 0:00:03.4]} 51... c2+ {[%clk 0:00:13.6]} 52. Bxc2 {[%clk 0:00:04]}
52... dxc2+ {[%clk 0:00:13.9]} 53. Kxc2 {[%clk 0:00:04.9]} 53... Bf1 {[%clk
0:00:13.9]} 54. g4 {[%clk 0:00:02.6]} 54... Bxh3 {[%clk 0:00:13.3]} 55. gxh5
{[%clk 0:00:03.5]} 55... gxh5 {[%clk 0:00:13.4]} 56. Kd3 {[%clk 0:00:03.9]}
56... Bd7 {[%clk 0:00:13.8]} 57. Kc4 {[%clk 0:00:03.5]} 57... Kg6 {[%clk
0:00:13.8]} 58. Kc5 {[%clk 0:00:03.8]} 58... Bb5 {[%clk 0:00:13.9]} 59. Kb6
{[%clk 0:00:04.4]} 59... Kf5 {[%clk 0:00:14]} 60. Bg3 {[%clk 0:00:04.1]} 60...
Be5 {[%clk 0:00:12.9]} 61. Bh4 {[%clk 0:00:04.6]} 61... Bf6 {[%clk 0:00:11.8]}
62. Bg3 {[%clk 0:00:05]} 62... h4 {[%clk 0:00:12.1]} 63. Bh2 {[%clk 0:00:05.8]}
63... h3 {[%clk 0:00:12.2]} 64. f4 {[%clk 0:00:05.5]} 64... Bc3 {[%clk
0:00:11.5]} 65. Kc5 {[%clk 0:00:05.9]} 65... Bd2 {[%clk 0:00:11.8]} 66. Kd4
{[%clk 0:00:05.9]} 66... Bxf4 {[%clk 0:00:11.8]} 67. Bg1 {[%clk 0:00:06.7]}
67... Bb8 {[%clk 0:00:11.6]} 68. Ke3 {[%clk 0:00:06.7]} 68... Ba7+ {[%clk
0:00:10.9]} 0-1